bitfinex/quotes_SOLUSD_20250123
["timestamp","ask_amount","ask_price","bid_price","bid_amount"]
[1737656182276,19.76495644,251.22,251.05,1.6142]
[1737656182552,19.76495644,251.22,251.05,23.776884]
[1737656182728,6.6462,251.21,251.05,23.776884]
[1737656182929,6.6462,251.21,251.08,20.0]
[1737656183233,6.6462,251.21,251.04,23.776884]
[1737656183436,6.6462,251.27,251.08,44.776884]
[1737656184026,6.6462,251.27,251.08,43.776884]
[1737656184257,49.76495644,251.25,251.03,1.57915279]
[1737656184438,39.76495644,251.17,250.99,6.0537]
[1737656184829,20.0,251.12,250.93,6.6395]
[1737656185048,23.88,251.11,250.93,6.6395]
[1737656185363,19.76495644,251.17,250.96,20.0]
[1737656185665,19.76495644,251.17,250.96,21.0]
[1737656186029,20.0,251.16,250.95,1.56554631]
[1737656186536,19.76495644,251.13,250.95,312.0]
[1737656186754,19.76495644,251.09,250.93,0.063]
[1737656186949,19.76495644,251.07,250.93,0.063]
[1737656187255,20.0,251.04,250.93,0.063]
[1737656187466,21.625,251.04,250.93,0.063]
[1737656187634,19.76495644,251.03,250.93,0.063]
[1737656188131,19.76495644,251.01,250.93,0.063]
[1737656188436,19.76495644,250.99,250.93,0.063]
[1737656188643,43.64495644,250.95,250.93,0.063]
[1737656189159,101.46495644,250.99,250.81,23.776884]
[1737656189359,4.36,250.98,250.83,1.0]
[1737656189556,4.36,250.98,250.87,23.776884]
[1737656189745,4.36,250.98,250.94,20.0]
[1737656189944,4.36,250.98,250.95,23.776884]
[1737656190172,1.4868,250.98,250.97,43.776884]
[1737656190451,21.29915644,251.11,250.97,43.776884]
[1737656190765,10.5464,251.12,251.01,20.0]
[1737656190934,4.38,251.12,251.02,23.776884]
[1737656191352,12.71027123,251.18,251.06,23.776884]
[1737656191661,6.06587123,251.18,251.1,23.776884]
[1737656193263,6.06587123,251.18,251.04,23.776884]
[1737656193564,8.1524,251.24,251.08,23.776884]
[1737656196053,19.76495644,251.25,251.11,20.0]
[1737656196260,59.12445644,251.29,251.12,23.776884]
[1737656196557,19.76495644,251.27,251.12,23.776884]
[1737656198144,19.76495644,251.25,251.03,9.0256]
[1737656198462,39.76495644,251.26,251.06,20.0]
[1737656198653,39.76495644,251.26,251.07,23.776884]
[1737656199168,20.0,251.25,251.12,20.0]
[1737656199371,19.76495644,251.28,251.13,23.776884]
[1737656199755,105.44425644,251.3,251.13,23.776884]
[1737656200058,140.80425644,251.3,251.13,23.776884]
[1737656200264,20.0,251.27,251.13,23.776884]
[1737656200753,23.776884,251.26,251.07,1.58197298]
[1737656201074,23.776884,251.26,251.06,20.0]
[1737656201557,18.60422727,251.26,251.06,20.0]
[1737656201869,42.34918371,251.26,251.06,20.0]
[1737656202165,18.60422727,251.26,251.06,20.0]
[1737656202464,81.7,251.3,251.11,312.0]
[1737656202674,101.46495644,251.3,251.11,312.0]
[1737656202849,101.46495644,251.3,251.06,21.0]
[1737656203053,19.76495644,251.24,251.06,20.0]
[1737656203442,19.76495644,251.19,250.97,1.6396]
[1737656203645,19.76495644,251.17,250.97,1.6396]
[1737656203971,19.76495644,251.13,250.97,1.6396]
[1737656204141,23.776884,251.12,250.97,1.6396]
[1737656204347,23.776884,251.1,250.98,20.0]
[1737656205278,23.776884,251.1,250.97,1.6396]
[1737656205762,4.36,251.14,250.97,1.6396]
[1737656205763,4.36,251.14,250.97,313.6396]
[1737656205944,4.36,251.14,251.0,20.0]
[1737656206140,81.7,251.16,251.0,20.0]
[1737656206867,81.7,251.16,250.98,20.0]
[1737656207069,81.7,251.16,250.98,43.776884]
[1737656207367,19.76495644,251.21,251.03,23.776884]
[1737656207547,10.9383,251.22,251.06,20.0]
[1737656207862,23.776884,251.21,251.06,20.0]
[1737656208654,10.9383,251.22,251.06,20.0]
[1737656209059,43.54184044,251.21,251.06,20.0]
[1737656209266,43.54184044,251.21,251.06,332.0]
[1737656209662,23.776884,251.21,251.06,332.0]
[1737656210752,81.7,251.17,250.93,1.0]
[1737656210974,23.776884,251.16,250.9,2.0]
[1737656211151,19.76495644,251.15,250.88,2.0]
[1737656211479,19.76495644,251.15,250.94,1.62067507]
[1737656211854,23.776884,251.16,250.94,1.62067507]
[1737656212372,19.76495644,251.15,250.98,20.0]
[1737656212574,30.0,251.09,250.98,20.0]
[1737656213875,30.0,251.09,250.98,312.0]
[1737656214974,30.0,251.09,250.99,23.776884]
[1737656215574,30.0,251.09,250.98,23.776884]
[1737656216267,81.7,251.17,251.04,20.0]
[1737656216778,6.5783,251.22,251.05,23.776884]
[1737656216980,6.5783,251.22,251.08,20.0]
[1737656218080,6.5783,251.22,251.08,332.0]
[1737656218266,2.35724166,251.21,251.08,332.0]
[1737656218669,2.35724166,251.21,251.12,20.0]
[1737656219983,2.35724166,251.25,251.12,20.0]
[1737656220378,2.35724166,251.25,251.16,20.0]
[1737656220881,2.35724166,251.25,251.2,20.0]
[1737656221455,2.35724166,251.24,251.2,20.0]
[1737656221655,2.35724166,251.24,251.2,332.0]
[1737656221855,2.35724166,251.24,251.2,312.0]
[1737656222173,2.35724166,251.24,251.09,1.6383]
[1737656222578,23.776884,251.23,251.09,1.6383]
[1737656222781,43.54184044,251.23,251.09,1.6383]
[1737656222968,23.776884,251.19,251.02,1.6383]
[1737656223168,19.76495644,251.18,251.02,1.6383]
[1737656223372,19.76495644,251.16,250.97,0.063]
[1737656223684,23.776884,251.15,250.98,20.0]
[1737656224183,19.76495644,251.16,251.02,20.0]
[1737656224388,19.76495644,251.18,251.02,20.0]
[1737656224588,2.35724166,251.14,251.02,20.0]
[1737656224790,2.35724166,251.14,250.98,23.776884]
[1737656224998,2.35724166,251.14,251.02,312.0]
[1737656225164,2.35724166,251.14,251.05,20.0]
[1737656225374,2.35724166,251.14,251.06,20.0]
[1737656225782,2.35724166,251.13,251.1,20.0]
[1737656226599,2.35724166,251.13,251.07,43.776884]
[1737656227102,2.35724166,251.13,251.11,20.0]
[1737656227268,0.03,251.26,251.11,20.0]
[1737656227269,2.35724166,251.21,251.11,20.0]
[1737656227977,2.35724166,251.21,251.04,1.0]
[1737656228164,23.776884,251.25,251.1,20.0]
[1737656228667,23.776884,251.23,251.1,20.0]
[1737656229102,23.776884,251.23,251.06,20.0]
[1737656229593,2.37111828,251.22,251.06,20.0]
[1737656230094,2.37111828,251.22,251.03,23.776884]
[1737656230395,47.656884,251.21,250.99,1.0]
[1737656230765,50.02800228,251.21,251.03,20.0]
[1737656231576,50.02800228,251.21,251.03,332.0]
[1737656231976,2.37111828,251.2,251.03,332.0]
[1737656233193,47.656884,251.21,251.03,332.0]
[1737656233194,2.37111828,251.19,251.03,332.0]
[1737656233388,20.0,251.18,251.03,312.0]
[1737656233691,23.776884,251.13,250.97,0.063]
[1737656233899,23.776884,251.11,250.98,0.063]
[1737656234196,30.0,251.09,250.98,0.063]
[1737656235574,30.0,251.09,251.0,20.0]
[1737656235880,2.37111828,251.08,251.0,20.0]
[1737656236086,30.0,251.06,251.0,20.0]
[1737656236288,30.0,251.06,250.98,20.063]
[1737656236692,30.0,251.06,250.98,332.063]
[1737656237198,30.0,251.06,250.99,20.0]
[1737656237495,30.0,251.06,251.03,20.0]
[1737656237799,4.36,251.13,251.03,20.0]
[1737656240299,4.36,251.13,251.06,312.0]
[1737656240800,2.37476157,251.12,251.06,312.0]
[1737656241180,129.356884,251.11,250.98,0.063]
[1737656241380,30.0,251.07,250.98,0.063]
[1737656241807,73.75874044,251.06,250.98,0.063]
[1737656242478,30.0,251.04,250.98,0.063]
[1737656243683,2.36785813,251.03,250.98,0.063]
[1737656243892,30.0,251.01,250.98,0.063]
[1737656244395,30.0,251.01,250.98,20.063]
[1737656244816,30.0,251.01,250.98,0.063]
[1737656245294,23.88,251.11,250.98,0.063]
[1737656245682,0.03,251.09,250.98,0.063]
[1737656246076,47.656884,251.07,250.98,0.063]
[1737656246274,1.5284,250.99,250.98,0.063]
[1737656246473,98.95024044,250.99,250.97,0.063]
[1737656246678,47.656884,250.94,250.84,6.06482407]
[1737656246997,67.42184044,250.94,250.84,6.06482407]
[1737656247503,47.656884,250.94,250.84,6.06482407]
[1737656247700,30.0,250.93,250.84,6.06482407]
[1737656247899,32.95820869,250.93,250.84,6.06482407]
[1737656248703,32.95820869,250.93,250.8,20.0]
[1737656248900,30.0,250.93,250.8,20.0]
[1737656250300,23.88,250.92,250.8,20.0]
[1737656250603,30.0,250.91,250.74,43.776884]
[1737656250998,47.656884,250.9,250.73,1.5228]
[1737656251405,23.88,250.87,250.72,1.62677235]
[1737656251580,23.88,250.81,250.72,0.063]
[1737656251784,19.76495644,250.84,250.72,0.063]
[1737656252004,39.76495644,250.84,250.72,0.063]
[1737656252307,30.0,250.8,250.72,0.063]
[1737656253101,1.5811,250.86,250.74,20.0]
[1737656253414,6.4731,250.89,250.74,20.0]
[1737656253587,6.4731,250.89,250.77,312.0]
[1737656255820,19.76495644,250.94,250.74,21.59623496]
[1737656255821,6.1386,250.95,250.82,20.0]
[1737656256508,6.1386,250.95,250.79,20.0]
[1737656256914,19.76495644,250.92,250.74,1.59623496]
[1737656257097,19.76495644,250.92,250.72,0.063]
[1737656257421,6.1386,250.95,250.72,43.839884]
[1737656257752,6.1386,250.95,250.72,45.47098689]
[1737656257892,6.1386,250.95,250.73,1.0]
[1737656258096,6.1386,250.95,250.77,0.063]
[1737656258301,6.1386,250.95,250.81,20.0]
[1737656258811,6.1386,250.95,250.81,332.0]
[1737656259318,6.1386,250.95,250.81,20.0]
[1737656259517,0.03,250.97,250.85,20.0]
[1737656259700,0.03,250.97,250.8,1.0]
[1737656259701,0.03,250.97,250.89,20.0]
[1737656260410,6.1386,251.02,250.93,20.0]
[1737656260607,4.36,251.07,250.93,20.0]
[1737656260808,4.36,251.07,250.97,20.0]
[1737656262309,4.36,251.07,250.97,332.0]
[1737656262506,0.03,251.09,251.01,20.0]
[1737656263607,0.03,251.09,251.05,20.0]
[1737656264734,0.03,251.09,251.0,1.60412364]
[1737656265025,0.03,251.09,250.91,1.0]
[1737656265344,0.03,251.09,250.94,1.0]
[1737656265713,0.03,251.09,251.0,312.0]
[1737656266618,0.03,251.09,251.04,20.0]
[1737656267333,6.2655,251.21,251.12,20.0]
[1737656267642,6.2655,251.21,251.12,16.804785]
[1737656268005,0.03,251.25,251.12,16.804785]
[1737656268528,0.03,251.25,251.13,23.776884]
[1737656269605,0.03,251.25,251.17,312.0]
[1737656270433,0.03,251.25,251.09,1.63256317]
[1737656270615,0.03,251.25,251.05,1.0]
[1737656271230,0.03,251.25,251.13,20.0]
[1737656271437,0.03,251.25,251.14,23.776884]
[1737656272001,0.03,251.25,251.17,20.0]
[1737656273729,0.03,251.25,251.07,23.776884]
[1737656274228,0.03,251.25,251.1,20.0]
[1737656274436,0.03,251.25,251.14,20.0]
[1737656275436,0.03,251.25,251.02,1.0]
[1737656275736,0.03,251.25,251.03,23.776884]
[1737656275931,23.806884,251.25,250.97,84.2]
[1737656276128,19.76495644,251.24,251.0,7.146]
[1737656276330,19.76495644,251.24,251.03,20.0]
[1737656276638,4.0104,251.23,251.07,20.0]
[1737656276844,43.54184044,251.22,251.01,3.28223145]
[1737656277428,30.0,251.17,251.09,20.0]
[1737656278038,81.7,251.21,251.09,20.0]
[1737656278429,0.03,251.23,251.01,3.28223145]
[1737656278430,105.476884,251.2,251.01,3.28223145]
[1737656278615,23.806884,251.23,250.92,0.063]
[1737656278616,20.0,251.09,250.92,0.063]
[1737656278830,25.99765644,251.02,250.92,0.063]
[1737656279026,19.76495644,250.98,250.92,0.063]
[1737656280745,19.76495644,251.0,250.92,0.063]
[1737656280920,6.2327,251.02,250.92,0.063]
[1737656280921,19.76495644,250.96,250.92,0.063]
[1737656281866,35.6471,251.0,250.92,0.063]
[1737656281867,19.76495644,250.94,250.92,0.063]
[1737656282150,30.0,250.93,250.92,0.063]
[1737656282725,24.12495644,250.96,250.92,0.063]
[1737656283245,4.36,250.96,250.92,0.063]
[1737656283827,6.2327,251.02,250.92,0.063]
[1737656284751,6.2327,251.02,250.92,20.063]
[1737656285424,1.5634,251.07,250.92,20.063]
[1737656286024,6.2967,251.09,250.96,20.0]
[1737656287453,47.52454044,251.08,250.92,0.063]
[1737656287643,19.76495644,251.06,250.92,0.063]
[1737656287952,19.76495644,251.06,250.92,20.063]
[1737656288240,43.54184044,251.08,250.92,20.063]
[1737656289336,19.76495644,251.08,250.92,20.063]
[1737656289529,6.2967,251.09,250.92,20.063]
[1737656289740,19.76495644,251.06,250.92,0.063]
[1737656290734,19.76495644,251.06,250.92,20.063]
[1737656290935,47.52454044,251.08,250.92,20.063]
[1737656291448,19.76495644,251.06,250.92,20.063]
[1737656291741,30.1767,251.09,250.92,20.063]
[1737656291742,10.2794,251.09,250.92,20.063]
[1737656291941,19.76495644,251.08,250.92,20.063]
[1737656292126,23.776884,251.07,250.92,20.063]
[1737656292327,19.76495644,251.0,250.92,0.063]
[1737656292536,19.76495644,250.96,250.92,0.063]
[1737656292950,19.76495644,250.94,250.92,0.063]
[1737656293639,36.5535,250.95,250.92,0.063]
[1737656294026,30.0,250.93,250.92,0.063]
[1737656297130,101.40694044,250.93,250.92,0.063]
[1737656297348,131.40694044,250.93,250.92,0.063]
[1737656297553,19.76495644,250.86,250.77,0.063]
[1737656297957,19.76495644,250.88,250.77,0.063]
[1737656298346,19.76495644,250.86,250.77,0.063]
[1737656298660,19.76495644,250.88,250.77,0.063]
[1737656298840,19.76495644,250.9,250.77,0.063]
[1737656299228,27.762684,250.89,250.77,0.063]
[1737656299442,23.776884,250.85,250.77,0.063]
[1737656299629,19.76495644,250.86,250.77,0.063]
[1737656299829,19.76495644,250.88,250.77,0.063]
[1737656300656,19.76495644,250.9,250.77,0.063]
[1737656301043,23.776884,250.91,250.77,0.063]
[1737656301245,81.7,250.92,250.77,20.063]
[1737656301734,6.5535,250.95,250.81,20.0]
[1737656301929,6.5535,250.95,250.85,20.0]
[1737656302131,81.7,250.99,250.85,20.0]
[1737656302338,25.96035644,251.02,250.85,20.0]
[1737656302551,25.96035644,251.02,250.89,20.0]
[1737656302784,6.1954,251.02,250.89,20.0]
[1737656303143,81.7,251.06,250.89,20.0]
[1737656303434,4.36,251.07,250.93,20.0]
[1737656304861,0.03,251.12,251.01,20.0]
[1737656305561,0.03,251.12,250.93,1.0]
[1737656305562,19.76495644,251.1,250.9,1.6005]
[1737656305728,19.76495644,251.08,250.9,1.6005]
[1737656305931,19.76495644,251.1,250.93,43.776884]
[1737656306128,0.03,251.12,250.93,43.776884]
[1737656306355,0.03,251.12,250.93,20.0]
[1737656306356,19.79495644,251.12,250.93,20.0]
[1737656306761,0.03,251.12,250.98,20.0]
[1737656306963,0.03,251.02,250.98,20.0]
[1737656307161,0.03,251.02,251.01,20.0]
[1737656307472,0.03,251.12,251.1,20.0]
[1737656310467,0.03,251.12,251.11,43.776884]
[1737656311489,0.03,251.23,251.15,20.0]
[1737656313676,0.03,251.23,251.15,21.57861761]
[1737656313869,0.03,251.23,251.15,333.57861761]
[1737656314374,0.03,251.23,251.16,23.776884]
[1737656314576,0.03,251.28,251.23,20.0]
[1737656314779,0.03,251.28,250.97,0.2]
[1737656314959,19.76495644,251.26,250.98,1.2]
[1737656315271,19.76495644,251.24,251.08,20.0]
[1737656315471,19.76495644,251.24,251.09,23.776884]
[1737656315679,19.76495644,251.26,251.09,23.776884]
[1737656315877,19.76495644,251.26,251.12,20.0]
[1737656316072,19.79495644,251.28,251.12,20.0]
[1737656316880,0.03,251.28,251.12,20.0]
[1737656317875,0.03,251.28,251.16,20.0]
[1737656318396,0.03,251.28,251.12,20.0]
[1737656318555,0.03,251.28,251.13,20.0]
[1737656318977,19.76495644,251.26,251.13,20.0]
[1737656319183,19.76495644,251.24,251.11,0.063]
[1737656319573,23.776884,251.23,251.11,0.063]
[1737656320084,19.76495644,251.22,251.11,0.063]
[1737656320503,19.76495644,251.24,251.11,0.063]
[1737656321492,29.324884,251.25,251.11,0.063]
[1737656322007,19.76495644,251.22,251.11,0.063]
[1737656323472,23.74555644,251.22,251.11,0.063]
[1737656324771,1.5679,251.25,251.11,0.063]
[1737656324772,19.76495644,251.2,251.11,0.063]
[1737656325099,23.74585644,251.2,251.11,0.063]
[1737656325509,23.776884,251.19,251.11,0.063]
[1737656325669,19.76495644,251.14,251.11,0.063]
[1737656325876,19.76495644,251.12,251.11,0.063]
[1737656326803,10.8841,251.15,251.11,0.063]
[1737656328006,47.52284044,251.2,251.11,0.063]
[1737656328208,43.54184044,251.2,251.11,0.063]
[1737656328708,10.1461,251.23,251.11,0.063]
[1737656329008,23.776884,251.22,251.11,0.063]
[1737656329216,19.79495644,251.28,251.12,20.0]
[1737656329420,19.76495644,251.26,251.12,20.0]
[1737656330083,19.79495644,251.28,251.12,20.0]
[1737656330296,0.03,251.28,251.13,23.776884]
[1737656330497,0.03,251.28,251.11,0.063]
[1737656330794,0.03,251.26,251.16,20.0]
[1737656331823,0.03,251.26,251.2,20.0]
[1737656332191,0.03,251.26,251.24,20.0]
[1737656332524,0.03,251.26,251.25,1.5997]
[1737656333025,0.03,251.26,251.25,21.5997]
[1737656333394,0.03,251.26,251.25,45.376584]
[1737656334431,0.03,251.28,251.26,23.776884]
[1737656334596,0.03,251.28,251.27,43.776884]
[1737656335715,0.03,251.28,251.2,1.5862]
[1737656336215,0.03,251.28,251.21,20.0]
[1737656336508,0.03,251.28,251.26,23.776884]
[1737656336892,0.03,251.38,251.2,2.5862]
[1737656336893,0.03,251.38,251.29,20.0]
[1737656337089,0.03,251.38,251.33,20.0]
[1737656337295,0.03,251.38,251.3,43.776884]
[1737656338392,0.03,251.38,251.26,1.63639802]
[1737656338594,0.03,251.38,251.26,312.0]
[1737656338795,0.03,251.38,251.3,20.0]
[1737656338991,0.03,251.38,251.31,20.0]
[1737656340512,0.03,251.38,251.17,2.0]
[1737656340513,0.03,251.38,251.2,3.16950664]
[1737656340821,0.03,251.38,251.21,20.0]
[1737656341015,0.03,251.38,251.2,3.16950664]
[1737656341219,19.76495644,251.34,251.14,1.633]
[1737656341601,81.7,251.35,251.15,23.776884]
[1737656341804,81.7,251.35,251.16,1.0]
[1737656342010,6.0019,251.36,251.21,23.776884]
[1737656343694,6.0019,251.36,251.26,20.0]
[1737656344504,6.0019,251.36,251.15,0.2]
[1737656344710,6.0019,251.36,251.15,1.2]
[1737656344918,6.0019,251.36,251.17,20.0]
[1737656345124,6.0019,251.36,251.21,23.776884]
[1737656345531,6.0019,251.36,251.14,1.633]
[1737656345702,9.9803,251.36,251.15,20.0]
[1737656345903,21.34165644,251.27,251.11,0.063]
[1737656346907,32.9364859,251.26,251.11,0.063]
[1737656347430,32.9364859,251.26,251.14,20.0]
[1737656347604,32.9364859,251.26,251.18,20.0]
[1737656348406,30.0,251.26,251.18,20.0]
[1737656348638,41.37585644,251.33,251.18,20.0]
[1737656348807,19.76495644,251.31,251.11,0.063]
[1737656349005,19.76495644,251.29,251.14,20.0]
[1737656349414,30.0,251.25,251.11,0.063]
[1737656349822,30.0,251.25,251.14,20.0]
[1737656350140,6.6631,251.23,251.14,20.0]
[1737656350434,30.0,251.2,251.11,0.063]
[1737656351021,19.76495644,251.19,251.11,0.063]
[1737656351224,21.37995644,251.19,251.11,0.063]
[1737656351917,19.76495644,251.17,251.11,0.063]
[1737656352239,30.0,251.16,251.11,0.063]
[1737656352538,23.776884,251.14,251.11,0.063]
[1737656352707,19.76495644,251.13,251.11,0.063]
[1737656353138,30.0,251.12,251.11,0.063]
[1737656353438,36.5599,251.12,251.11,0.063]
[1737656354139,39.50181313,251.12,251.11,0.063]
[1737656354841,41.85560607,251.12,251.11,0.063]
[1737656356438,39.50181313,251.12,251.11,0.063]
[1737656357438,32.94191313,251.12,251.11,0.063]
[1737656358832,30.0,251.12,251.11,0.063]
[1737656360331,6.4315,251.18,251.11,0.063]
[1737656360854,81.7,251.22,251.11,0.063]
[1737656361029,6.4054,251.24,251.11,0.063]
[1737656363138,6.4054,251.24,251.14,20.0]
[1737656364947,6.555,251.3,251.14,20.0]
[1737656365151,6.555,251.3,251.13,20.0]
[1737656365654,6.555,251.3,251.17,20.0]
[1737656365853,0.03,251.28,251.17,20.0]
[1737656366442,0.03,251.28,251.21,20.0]
[1737656366841,0.03,251.28,251.15,1.6644]
[1737656367043,4.0096,251.28,251.15,3.30347017]
[1737656367349,19.76495644,251.24,251.11,0.063]
[1737656368449,23.74515644,251.24,251.11,0.063]
[1737656368641,19.76495644,251.24,251.11,0.063]
[1737656369362,2.93185087,251.23,251.11,0.063]
[1737656371160,26.67670731,251.26,251.11,0.063]
[1737656371362,43.54184044,251.24,251.11,0.063]
[1737656372141,30.0,251.2,251.11,0.063]
[1737656373357,19.76495644,251.17,251.11,0.063]
[1737656373555,49.76495644,251.15,251.11,0.063]
[1737656374674,25.79915644,251.13,251.11,0.063]
[1737656374850,30.0,251.12,251.11,0.063]
[1737656375639,19.76495644,251.26,251.11,1.6635]
[1737656375840,0.03,251.28,251.15,20.0]
[1737656376172,0.03,251.28,251.12,23.776884]
[1737656376173,0.03,251.28,251.23,20.0]
[1737656376346,0.03,251.28,251.27,20.0]
[1737656377898,2.31957288,251.36,251.27,43.976884]
[1737656378041,0.03,251.47,251.33,20.0]
[1737656378240,0.03,251.47,251.41,20.0]
[1737656378444,0.03,251.47,251.32,0.2]
[1737656378650,19.76495644,251.46,251.26,0.2]
[1737656378954,19.76495644,251.46,251.26,20.0]
[1737656379142,0.03,251.47,251.34,20.0]
[1737656380767,0.03,251.47,251.24,1.82754199]
[1737656380952,19.79495644,251.47,251.26,43.776884]
[1737656381146,0.03,251.47,251.26,355.776884]
[1737656382382,0.03,251.47,251.26,43.776884]
[1737656383381,19.79495644,251.47,251.26,43.776884]
[1737656383855,19.76495644,251.45,251.26,43.776884]
[1737656384274,23.74195644,251.45,251.26,20.0]
[1737656384459,19.76495644,251.41,251.25,1.6664]
[1737656384671,23.776884,251.4,251.25,1.6664]
[1737656384882,23.776884,251.4,251.26,20.0]
[1737656385058,23.776884,251.4,251.17,23.776884]
[1737656385258,23.776884,251.4,251.17,25.39332407]
[1737656385478,23.776884,251.4,251.24,20.0]
[1737656385983,19.76495644,251.37,251.2,20.0]
[1737656386153,19.76495644,251.37,251.17,312.0]
[1737656386154,3.9783,251.36,251.24,20.0]
[1737656386578,3.9783,251.36,251.16,7.9447]
[1737656386785,3.9783,251.36,251.2,23.776884]
[1737656387982,23.776884,251.38,251.2,23.776884]
[1737656388190,27.754884,251.38,251.2,23.776884]
[1737656388562,23.776884,251.36,251.19,20.0]
[1737656389171,30.0,251.35,251.19,20.0]
[1737656389370,30.0,251.35,251.2,20.0]
[1737656389580,23.776884,251.34,251.2,20.0]
[1737656389760,19.76495644,251.33,251.2,20.0]
[1737656389957,19.76495644,251.33,251.11,0.063]
[1737656389958,10.3188,251.31,251.19,0.063]
[1737656390173,43.54184044,251.3,251.19,0.063]
[1737656390463,19.76495644,251.27,251.19,0.063]
[1737656390667,19.76495644,251.24,251.19,0.063]
[1737656391263,19.76495644,251.22,251.19,0.063]
[1737656392086,1.5749,251.28,251.19,0.063]
[1737656392492,6.3397,251.31,251.19,0.063]
[1737656396185,6.3397,251.31,251.19,20.063]
[1737656397272,1.6094,251.35,251.2,20.0]
[1737656397590,6.1157,251.37,251.2,20.0]
[1737656398390,6.1157,251.37,251.2,332.0]
[1737656399094,4.36,251.38,251.2,332.0]
[1737656399666,4.36,251.38,251.24,20.0]
[1737656400495,23.776884,251.37,251.2,312.0]
[1737656400683,43.54184044,251.37,251.23,20.0]
[1737656400879,19.76495644,251.35,251.19,0.063]
[1737656401271,43.54184044,251.37,251.2,20.0]
[1737656401489,4.36,251.38,251.21,20.0]
[1737656401810,8.338,251.38,251.21,20.0]
[1737656402167,4.36,251.38,251.21,20.0]
[1737656403189,23.806884,251.4,251.21,20.0]
[1737656403684,23.806884,251.4,251.21,332.0]
[1737656404002,23.806884,251.4,251.25,20.0]
[1737656404171,27.784684,251.4,251.25,20.0]
[1737656404802,81.7,251.39,251.25,20.0]
[1737656405606,81.7,251.38,251.29,20.0]
[1737656408202,81.7,251.38,251.25,1.5668513]
[1737656408496,81.7,251.38,251.19,82.063]
[1737656408795,19.76495644,251.35,251.19,0.063]
[1737656409380,3.9786,251.34,251.19,0.063]
[1737656409599,101.46495644,251.37,251.19,0.063]
[1737656409897,81.7,251.37,251.19,0.063]
[1737656410098,81.7,251.37,251.22,23.776884]
[1737656411101,81.7,251.37,251.19,0.063]
[1737656411298,81.7,251.37,251.27,20.0]
[1737656411798,85.6782,251.37,251.19,0.063]
[1737656412304,85.6782,251.37,251.21,20.0]
[1737656413893,21.39505644,251.34,251.19,0.063]
[1737656414201,19.76495644,251.3,251.19,0.063]
[1737656414403,43.54184044,251.28,251.19,0.063]
[1737656414596,19.76495644,251.26,251.19,0.063]
[1737656414773,23.776884,251.25,251.24,0.063]
[1737656414978,23.776884,251.25,251.19,0.063]
[1737656415190,19.76495644,251.22,251.19,0.063]
[1737656415389,30.0,251.2,251.19,0.063]
[1737656415591,30.0,251.19,251.11,0.063]
[1737656415906,19.76495644,251.13,251.11,0.063]
[1737656416493,30.0,251.12,251.11,0.063]